fUST/lending_fUST_20240824
["ID","MTS","AMOUNT","RATE_DAILY","PERIOD"]
[335775338,1724485857811,-3466.8986918,0.00013972,2]
[335775339,1724485858376,-1954.58,0.00013823,2]
[335775340,1724485858386,-153.0,0.00013878,2]
[335775341,1724485858396,-153.0,0.00013878,2]
[335775342,1724485858406,-153.0,0.00013878,2]
[335775343,1724485858415,-1208.1413082,0.00013972,2]
[335775344,1724485858427,-500.0,0.00013972,2]
[335775345,1724485858441,-1003.5,0.00013972,2]
[335775346,1724485858452,-590.96582078,0.00013972,2]
[335775347,1724485858463,-500.0,0.00013972,2]
[335775348,1724485858475,-8714.97,0.00013972,2]
[335775349,1724485858486,-491.82331326,0.00013972,2]
[335775350,1724485858496,-500.0,0.00013972,2]
[335775351,1724485858505,-1022.42,0.00013972,2]
[335775352,1724485858515,-529.51,0.00013972,2]
[335775353,1724485858524,-500.0,0.00013972,2]
[335775354,1724485858533,-583.33,0.00013972,2]
[335775355,1724485858543,-500.0,0.00013972,2]
[335775356,1724485858554,-500.0,0.00013972,2]
[335775357,1724485858565,-3008.009302,0.00013972,2]
[335775358,1724485858576,-500.0,0.00013972,2]
[335775359,1724485858587,-3008.009302,0.00013972,2]
[335775360,1724485858597,-548.63,0.00013972,2]
[335775361,1724485858608,-1412.44,0.00013972,2]
[335775362,1724485858620,-1281.61,0.00013972,2]
[335775363,1724485858630,-663.48,0.00013972,2]
[335775364,1724485858640,-3008.009302,0.00013972,2]
[335775365,1724485858651,-611.13,0.00013972,2]
[335775366,1724485858662,-2385.91,0.00013972,2]
[335775367,1724485858673,-500.0,0.00013972,2]
[335775368,1724485858692,-3008.009302,0.00013972,2]
[335775369,1724485858703,-632.75,0.00013972,2]
[335775370,1724485858714,-566.06,0.00013972,2]
[335775371,1724485858724,-500.0,0.00013972,2]
[335775372,1724485858737,-500.0,0.00013972,2]
[335775373,1724485858747,-500.0,0.00013972,2]
[335775374,1724485858758,-500.0,0.00013972,2]
[335775375,1724485858768,-500.0,0.00013972,2]
[335775376,1724485858780,-1147.49,0.00013972,2]
[335775377,1724485858791,-500.0,0.00013972,2]
[335775378,1724485858801,-1036.11,0.00013972,2]
[335775379,1724485858811,-14076.01,0.00013972,2]
[335775380,1724485858821,-538.46,0.00013972,2]
[335775381,1724485858831,-3363.73,0.00013972,2]
[335775382,1724485858841,-1625.35,0.00013972,2]
[335775383,1724485858851,-3038.98,0.00013972,2]
[335775384,1724485858861,-500.25966525,0.00013972,2]
[335775385,1724485858872,-170.87905401,0.00013972,2]
[335775386,1724485858882,-500.0,0.00013972,2]
[335775387,1724485858892,-500.0,0.00013972,2]
[335775388,1724485858901,-1457.55,0.00013972,2]
[335775389,1724485858911,-755.69,0.00013972,2]
[335775390,1724485858920,-500.0,0.00013972,2]
[335775391,1724485858930,-592.07,0.00013972,2]
[335775392,1724485858940,-500.0,0.00013972,2]
[335775393,1724485858950,-2827.05,0.00013972,2]
[335775394,1724485858959,-500.0,0.00013972,2]
[335775395,1724485858970,-2197.69,0.00013972,2]
[335775396,1724485858979,-948.86,0.00013972,2]
[335775397,1724485858989,-500.0,0.00013972,2]
[335775398,1724485858999,-857.88,0.00013972,2]
[335775399,1724485859009,-6881.88,0.00013972,2]
[335775400,1724485859208,-731.57,0.00013972,2]
[335775401,1724485859219,-500.0,0.00013972,2]
[335775402,1724485859232,-500.0,0.00013972,2]
[335775403,1724485859242,-500.0,0.00013972,2]
[335775404,1724485859252,-525.97,0.00013972,2]
[335775405,1724485859261,-500.0,0.00013972,2]
[335775406,1724485859271,-374.3743546,0.00013972,2]
[335775407,1724485860971,-1954.58,0.00013823,2]
[335775408,1724485860982,-1221.30780479,0.00013823,2]
[335775412,1724485953408,500.0,0.00027,120]
[335775416,1724486037457,159.84514084,0.00012111,2]
[335775422,1724486239834,3826.40937795,0.00012111,2]
[335775499,1724486842131,-2596.97571274,0.00012629,2]
[335775500,1724486842151,-500.0,0.00012877,2]
[335775501,1724486842171,-167.94520241,0.00012991,2]
[335775502,1724486842192,-163.68026456,0.00012991,2]
[335775503,1724486842214,-154.71377951,0.00012999,2]
[335775504,1724486842234,-154.71377951,0.00012999,2]
[335775505,1724486842255,-2282.92421799,0.00013596,3]
[335775506,1724486842275,-864.60420471,0.00013597,2]
[335775507,1724486842295,-300.0,0.00013597,2]
[335775508,1724486842316,-598.64550548,0.00013598,2]
[335775509,1724486842336,-168.968947,0.00013598,2]
[335775510,1724486842357,-2401.48469057,0.00013598,2]
[335775511,1724486842378,-2000.0,0.00013598,2]
[335775512,1724486842399,-168.96894699,0.00013667,2]
[335775513,1724486842419,-187.37506489,0.00013673,2]
[335775545,1724487034797,-264.6179422,0.00013596,2]
[335775546,1724487034806,-2101.29910424,0.00013598,2]
[335775547,1724487034816,-500.0,0.00013673,2]
[335775548,1724487034825,-201.67736128,0.00013673,2]
[335775549,1724487034834,-300.0,0.00013697,2]
[335775550,1724487034844,-255.01063183,0.00013698,2]
[335775551,1724487034853,-280.02222038,0.00013698,2]
[335775552,1724487034863,-500.0,0.00013698,2]
[335775553,1724487034872,-500.0,0.00013698,2]
[335775554,1724487034881,-500.0,0.00013698,2]
[335775555,1724487034891,-500.0,0.00013698,2]
[335775556,1724487034900,-336.35862873,0.00013698,2]
[335775557,1724487034910,-500.0,0.00013698,2]
[335775558,1724487034920,-500.0,0.00013698,2]
[335775559,1724487034931,-500.0,0.00013698,2]
[335775560,1724487034941,-500.0,0.00013698,2]
[335775561,1724487034952,-306.72272003,0.00013698,2]
[335775562,1724487034962,-500.0,0.00013698,2]
[335775563,1724487034971,-500.0,0.00013698,2]
[335775564,1724487035229,-500.0,0.00013698,2]
[335775565,1724487035239,-500.0,0.00013698,2]
[335775566,1724487035249,-500.0,0.00013698,2]
[335775567,1724487035260,-500.0,0.00013698,2]
[335775568,1724487035270,-500.0,0.00013698,2]
[335775569,1724487035281,-512.39474416,0.00013698,2]
[335775570,1724487035291,-512.39474416,0.00013698,2]
[335775571,1724487035302,-512.39474416,0.00013698,2]
[335775572,1724487035311,-512.39474416,0.00013698,2]
[335775573,1724487035322,-512.39474416,0.00013698,2]
[335775574,1724487035332,-512.39474416,0.00013698,2]
[335775575,1724487035343,-512.39474416,0.00013698,2]
[335775576,1724487035354,-512.39474416,0.00013698,2]
[335775577,1724487035365,-512.39474416,0.00013698,2]
[335775578,1724487035374,-512.39474416,0.00013698,2]
[335775579,1724487035384,-512.39474416,0.00013698,2]
[335775580,1724487035395,-512.39474416,0.00013698,2]
[335775581,1724487035407,-512.39474416,0.00013698,2]
[335775582,1724487035417,-512.39474416,0.00013698,2]
[335775583,1724487035428,-512.39474416,0.00013698,2]
[335775584,1724487035439,-161.54525544,0.00013698,2]
[335775585,1724487035449,-500.0,0.00013698,2]
[335775586,1724487035463,-519.28,0.00013698,2]
[335775587,1724487035473,-500.0,0.00013698,2]
[335775588,1724487035482,-758.89,0.00013698,2]
[335775589,1724487035491,-500.0,0.00013698,2]
[335775590,1724487035501,-778.82,0.00013698,2]
[335775591,1724487035509,-500.0,0.00013698,2]
[335775592,1724487035518,-741.51,0.00013698,2]
[335775593,1724487035527,-398.55180847,0.00013698,2]
[335775594,1724487035536,-553.9,0.00013698,2]
[335775595,1724487035545,-500.0,0.00013698,2]
[335775596,1724487035555,-500.0,0.00013698,2]
[335775597,1724487035565,-500.0,0.00013698,2]
[335775598,1724487035574,-500.0,0.00013698,2]
[335775599,1724487035583,-797.14,0.00013698,2]
[335775600,1724487035593,-500.0,0.00013698,2]
[335775601,1724487035602,-500.0,0.00013698,2]
[335775602,1724487035611,-557.03,0.00013698,2]
[335775603,1724487035621,-557.48915193,0.00013698,2]
[335775604,1724487035629,-697.23,0.00013698,2]
[335775605,1724487035638,-500.0,0.00013698,2]
[335775606,1724487035648,-500.0,0.00013698,2]
[335775607,1724487035657,-286.58702457,0.00013698,2]
[335775608,1724487035667,-226.45830538,0.00013698,2]
[335775609,1724487035676,-500.0,0.00013698,2]
[335775610,1724487035685,-500.0,0.00013698,2]
[335775611,1724487035695,-568.79,0.00013698,2]
[335775612,1724487035705,-500.0,0.00013698,2]
[335775613,1724487035714,-500.0,0.00013698,2]
[335775614,1724487035726,-676.42,0.00013698,2]
[335775615,1724487035737,-500.0,0.00013698,2]
[335775616,1724487035749,-500.0,0.00013698,2]
[335775617,1724487035760,-500.0,0.00013698,2]
[335775618,1724487035771,-500.0,0.00013698,2]
[335775619,1724487035780,-500.0,0.00013698,2]
[335775620,1724487035790,-536.42,0.00013698,2]
[335775621,1724487035799,-500.0,0.00013698,2]
[335775622,1724487035808,-500.0,0.00013698,2]
[335775623,1724487035817,-500.0,0.00013698,2]
[335775624,1724487035827,-500.0,0.00013698,2]
[335775625,1724487035836,-500.0,0.00013698,2]
[335775626,1724487035845,-565.65,0.00013698,2]
[335775627,1724487035854,-500.0,0.00013698,2]
[335775628,1724487035863,-500.0,0.00013698,2]
[335775629,1724487035872,-2205.52,0.00013698,2]
[335775630,1724487035881,-500.0,0.00013698,2]
[335775631,1724487035891,-500.0,0.00013698,2]
[335775632,1724487035901,-500.0,0.00013698,2]
[335775633,1724487035910,-500.0,0.00013698,2]
[335775634,1724487035919,-500.0,0.00013698,2]
[335775635,1724487035929,-500.0,0.00013698,2]
[335775636,1724487035939,-500.0,0.00013698,2]
[335775637,1724487035951,-671.32,0.00013698,2]
[335775638,1724487035960,-500.0,0.00013698,2]
[335775639,1724487035969,-463.25898849,0.00013698,2]
[335775640,1724487035978,-500.0,0.00013698,2]
[335775641,1724487035987,-500.0,0.00013698,2]
[335775642,1724487035996,-500.0,0.00013698,2]
[335775643,1724487036006,-500.0,0.00013698,2]
[335775644,1724487036016,-208.28245632,0.00013698,2]
[335775645,1724487036025,-500.0,0.00013698,2]
[335775646,1724487036035,-500.0,0.00013698,2]
[335775647,1724487036045,-500.0,0.00013698,2]
[335775648,1724487036056,-500.0,0.00013698,2]
[335775649,1724487036065,-500.0,0.00013698,2]
[335775650,1724487036074,-500.42521191,0.00013698,2]
[335775651,1724487036083,-500.0,0.00013698,2]
[335775652,1724487036094,-807.09,0.00013698,2]
[335775653,1724487036103,-625.80608268,0.00013698,2]
[335775654,1724487036120,-241.19391732,0.00013698,2]
[335775655,1724487036129,-500.0,0.00013698,2]
[335775656,1724487036139,-500.0,0.00013698,2]
[335775657,1724487036149,-500.0,0.00013698,2]
[335775658,1724487036158,-500.0,0.00013698,2]
[335775659,1724487036167,-500.0,0.00013698,2]
[335775660,1724487036177,-500.0,0.00013698,2]
[335775661,1724487036187,-500.0,0.00013698,2]
[335775662,1724487036197,-500.0,0.00013698,2]
[335775663,1724487036207,-501.06985479,0.00013698,2]
[335775664,1724487036217,-500.0,0.00013698,2]
[335775665,1724487036229,-626.07,0.00013698,2]
[335775666,1724487036240,-500.0,0.00013698,2]
[335775667,1724487036251,-500.0,0.00013698,2]
[335775668,1724487036262,-500.0,0.00013698,2]
[335775669,1724487036271,-500.0,0.00013698,2]
[335775670,1724487036281,-500.0,0.00013698,2]
[335775671,1724487036290,-500.0,0.00013698,2]
[335775672,1724487036299,-331.26320691,0.00013698,2]
[335775695,1724487038093,-168.73679309,0.00013698,2]
[335775696,1724487038105,-500.0,0.00013698,2]
[335775697,1724487038115,-500.0,0.00013698,2]
[335775698,1724487038125,-500.0,0.00013698,2]
[335775699,1724487038135,-500.0,0.00013698,2]
[335775700,1724487038145,-500.0,0.00013698,2]
[335775701,1724487038155,-500.0,0.00013698,2]
[335775702,1724487038165,-500.0,0.00013698,2]
[335775703,1724487038174,-929.53950011,0.00013698,2]
[335775704,1724487038206,-67.36049989,0.00013698,2]
[335775705,1724487038216,-500.0,0.00013698,2]
[335775706,1724487038226,-500.0,0.00013698,2]
[335775707,1724487038236,-924.93,0.00013698,2]
[335775708,1724487038246,-500.0,0.00013698,2]
[335775709,1724487038256,-500.0,0.00013698,2]
[335775710,1724487038265,-500.0,0.00013698,2]
[335775711,1724487038275,-500.0,0.00013698,2]
[335775712,1724487038285,-500.0,0.00013698,2]
[335775713,1724487038294,-332.92760639,0.00013698,2]
[335775714,1724487038304,-500.0,0.00013698,2]
[335775715,1724487038314,-500.0,0.00013698,2]
[335775716,1724487038323,-500.0,0.00013698,2]
[335775717,1724487038333,-500.0,0.00013698,2]
[335775718,1724487038344,-500.42181622,0.00013698,2]
[335775719,1724487038353,-654.21,0.00013698,2]
[335775720,1724487038363,-500.0,0.00013698,2]
[335775721,1724487038373,-552.49,0.00013698,2]
[335775722,1724487038382,-500.0,0.00013698,2]
[335775723,1724487038392,-500.0,0.00013698,2]
[335775724,1724487038402,-500.0,0.00013698,2]
[335775725,1724487038412,-500.0,0.00013698,2]
[335775726,1724487038421,-832.81,0.00013698,2]
[335775727,1724487038430,-1851.6,0.00013698,2]
[335775728,1724487038441,-1570.72,0.00013698,2]
[335775729,1724487038453,-500.0,0.00013698,2]
[335775730,1724487038464,-740.08,0.00013698,2]
[335775731,1724487038473,-500.0,0.00013698,2]
[335775732,1724487038484,-584.53,0.00013698,2]
[335775733,1724487038495,-500.0,0.00013698,2]
[335775734,1724487038505,-500.0,0.00013698,2]
[335775735,1724487038517,-500.0,0.00013698,2]
[335775736,1724487038527,-636.45,0.00013698,2]
[335775737,1724487038537,-500.0,0.00013698,2]
[335775738,1724487038549,-404.08638448,0.00013698,2]
[335775739,1724487038559,-500.0,0.00013698,2]
[335775740,1724487038569,-500.0,0.00013698,2]
[335775741,1724487038579,-500.0,0.00013698,2]
[335775742,1724487038588,-500.0,0.00013698,2]
[335775743,1724487038598,-500.0,0.00013698,2]
[335775744,1724487038608,-500.0,0.00013698,2]
[335775745,1724487038621,-500.0,0.00013698,2]
[335775746,1724487038631,-500.0,0.00013698,2]
[335775747,1724487038640,-500.0,0.00013698,2]
[335775748,1724487038649,-500.0,0.00013698,2]
[335775749,1724487038659,-500.0,0.00013698,2]
[335775750,1724487038668,-699.47,0.00013698,2]
[335775751,1724487038679,-932.33,0.00013698,2]
[335775752,1724487038689,-591.70678554,0.00013698,2]
[335775753,1724487038700,-823.17,0.00013698,2]
[335775754,1724487038712,-500.0,0.00013698,2]
[335775755,1724487038723,-539.63,0.00013698,2]
[335775756,1724487038734,-500.97004959,0.00013698,2]
[335775757,1724487038745,-689.97,0.00013698,2]
[335775758,1724487038756,-150.0,0.00013698,2]
[335775759,1724487038765,-500.0,0.00013698,2]
[335775760,1724487038774,-500.0,0.00013698,2]
[335775761,1724487038784,-500.0,0.00013698,2]
[335775762,1724487038996,-500.0,0.00013698,2]
[335775763,1724487039006,-552.09,0.00013698,2]
[335775764,1724487039015,-316.24143331,0.00013698,2]
[335775765,1724487039024,-500.0,0.00013698,2]
[335775766,1724487039034,-2104.39,0.00013698,2]
[335775767,1724487039043,-500.0,0.00013698,2]
[335775768,1724487039052,-500.0,0.00013698,2]
[335775769,1724487039061,-542.64,0.00013698,2]
[335775770,1724487039071,-581.24,0.00013698,2]
[335775771,1724487039081,-1016.56,0.00013698,2]
[335775772,1724487039091,-772.37,0.00013698,2]
[335775773,1724487039100,-500.0,0.00013698,2]
[335775774,1724487039110,-510.55,0.00013698,2]
[335775775,1724487039120,-500.0,0.00013698,2]
[335775776,1724487039129,-500.0,0.00013698,2]
[335775777,1724487039138,-638.25,0.00013698,2]
[335775778,1724487039147,-716.63,0.00013698,2]
[335775779,1724487039157,-500.0,0.00013698,2]
[335775780,1724487039166,-500.0,0.00013698,2]
[335775781,1724487039176,-500.0,0.00013698,2]
[335775782,1724487039185,-500.0,0.00013698,2]
[335775783,1724487039195,-500.0,0.00013698,2]
[335775784,1724487039205,-500.0,0.00013698,2]
[335775785,1724487039215,-1172.36,0.00013698,2]
[335775786,1724487039228,-523.95976346,0.00013698,2]
[335775787,1724487039238,-500.0,0.00013698,2]
[335775788,1724487039248,-500.0,0.00013698,2]
[335775789,1724487039258,-500.0,0.00013698,2]
[335775790,1724487039267,-928.3,0.00013698,2]
[335775791,1724487039277,-500.0,0.00013698,2]
[335775792,1724487039287,-500.0,0.00013698,2]
[335775793,1724487039297,-500.0,0.00013698,2]
[335775794,1724487039306,-982.25,0.00013698,2]
[335775795,1724487039315,-823.4,0.00013698,2]
[335775796,1724487039325,-500.0,0.00013698,2]
[335775797,1724487039334,-500.0,0.00013698,2]
[335775798,1724487039344,-2764.61,0.00013698,2]
[335775799,1724487039354,-525.86,0.00013698,2]
[335775800,1724487039363,-500.0,0.00013698,2]
[335775801,1724487039373,-1400.66,0.00013698,2]
[335775802,1724487039382,-500.0,0.00013698,2]
[335775803,1724487039392,-500.0,0.00013698,2]
[335775804,1724487039402,-500.0,0.00013698,2]
[335775805,1724487039411,-500.0,0.00013698,2]
[335775806,1724487039421,-500.0,0.00013698,2]
[335775807,1724487039430,-500.0,0.00013698,2]
[335775808,1724487039439,-500.0,0.00013698,2]
[335775809,1724487039449,-500.0,0.00013698,2]
[335775810,1724487039459,-500.0,0.00013698,2]
[335775811,1724487039468,-500.0,0.00013698,2]
[335775812,1724487039478,-500.0,0.00013698,2]
[335775813,1724487039488,-500.0,0.00013698,2]
[335775814,1724487039497,-500.0,0.00013698,2]
[335775815,1724487039507,-917.3,0.00013698,2]
[335775817,1724487039516,-500.0,0.00013698,2]
[335775819,1724487039525,-500.0,0.00013698,2]
[335775821,1724487039534,-500.0,0.00013698,2]
[335775823,1724487039544,-500.0,0.00013698,2]
[335775825,1724487039553,-417.61929196,0.00013698,2]
[335775828,1724487039562,-500.0,0.00013698,2]
[335775831,1724487039572,-1211.68,0.00013698,2]
[335775834,1724487039582,-1311.87,0.00013698,2]
[335775837,1724487039591,-500.0,0.00013698,2]
[335775838,1724487039601,-501.46148041,0.00013698,2]
[335775839,1724487039610,-500.0,0.00013698,2]
[335775841,1724487039620,-408.43302297,0.00013698,2]
[335775888,1724487040144,-91.56697703,0.00013698,2]
[335775890,1724487040154,-500.0,0.00013698,2]
[335775892,1724487040164,-789.84,0.00013698,2]
[335775894,1724487040174,-500.0,0.00013698,2]
[335775897,1724487040183,-724.29,0.00013698,2]
[335775899,1724487040193,-2092.23,0.00013698,2]
[335775901,1724487040202,-1070.7,0.00013698,2]
[335775903,1724487040212,-576.46,0.00013698,2]
[335775905,1724487040222,-766.39,0.00013698,2]
[335775907,1724487040231,-922.49,0.00013698,2]
[335775909,1724487040240,-500.0,0.00013698,2]
[335775911,1724487040250,-500.0,0.00013698,2]
[335775913,1724487040260,-500.0,0.00013698,2]
[335775915,1724487040269,-473.13330551,0.00013698,2]
[335775917,1724487040281,-919.63,0.00013698,2]
[335775919,1724487040291,-500.0,0.00013698,2]
[335775921,1724487040301,-500.0,0.00013698,2]
[335775923,1724487040312,-902.84,0.00013698,2]
[335775925,1724487040322,-1025.78,0.00013698,2]
[335775928,1724487040332,-888.89,0.00013698,2]
[335775930,1724487040343,-500.0,0.00013698,2]
[335775932,1724487040353,-922.79,0.00013698,2]
[335775934,1724487040363,-581.01,0.00013698,2]
[335775936,1724487040372,-566.24,0.00013698,2]
[335775938,1724487040382,-500.0,0.00013698,2]
[335775940,1724487040391,-500.0,0.00013698,2]
[335775942,1724487040400,-826.11,0.00013698,2]
[335775944,1724487040410,-500.0,0.00013698,2]
[335775946,1724487040420,-500.0,0.00013698,2]
[335775948,1724487040430,-500.0,0.00013698,2]
[335775950,1724487040439,-500.0,0.00013698,2]
[335775952,1724487040449,-500.0,0.00013698,2]
[335775954,1724487040459,-491.82331326,0.00013698,2]
[335775956,1724487040469,-2882.83,0.00013698,2]
[335775958,1724487040478,-500.0,0.00013698,2]
[335775960,1724487040488,-1266.04,0.00013698,2]
[335775963,1724487040498,-500.0,0.00013698,2]
[335775965,1724487040508,-500.0,0.00013698,2]
[335775967,1724487040518,-500.0,0.00013698,2]
[335775969,1724487040527,-855.52,0.00013698,2]
[335775971,1724487040536,-635.83,0.00013698,2]
[335775973,1724487040546,-1153.78,0.00013698,2]
[335775976,1724487040562,-699.31,0.00013698,2]
[335775978,1724487040576,-642.31,0.00013698,2]
[335775980,1724487040586,-500.0,0.00013698,2]
[335775982,1724487040606,-500.0,0.00013698,2]
[335775984,1724487040619,-547.69074638,0.00013698,2]
[335775986,1724487040629,-500.0,0.00013698,2]
[335775988,1724487040639,-583.33,0.00013698,2]
[335775991,1724487040651,-590.96582078,0.00013698,2]
[335775993,1724487040661,-500.0,0.00013698,2]
[335775995,1724487040671,-500.0,0.00013698,2]
[335775997,1724487040680,-500.0,0.00013698,2]
[335775999,1724487040691,-992.94,0.00013698,2]
[335776001,1724487040703,-522.08,0.00013698,2]
[335776003,1724487040714,-542.47,0.00013698,2]
[335776005,1724487040725,-500.25966525,0.00013698,2]
[335776007,1724487040735,-500.0,0.00013698,2]
[335776009,1724487040745,-500.0,0.00013698,2]
[335776012,1724487040756,-500.0,0.00013698,2]
[335776014,1724487040766,-724.2,0.00013698,2]
[335776016,1724487040776,-500.0,0.00013698,2]
[335776018,1724487040786,-500.0,0.00013698,2]
[335776020,1724487040795,-520.93836878,0.00013698,2]
[335776022,1724487040805,-1099.68,0.00013698,2]
[335776024,1724487040816,-500.0,0.00013698,2]
[335776026,1724487040826,-1286.24,0.00013698,2]
[335776028,1724487040836,-500.0,0.00013698,2]
[335776030,1724487040849,-1943.74,0.00013698,2]
[335776033,1724487040859,-1616.02,0.00013698,2]
[335776035,1724487040869,-1466.49,0.00013698,2]
[335776037,1724487040878,-567.4,0.00013698,2]
[335776039,1724487040888,-500.0,0.00013698,2]
[335776041,1724487040898,-1304.06,0.00013698,2]
[335776043,1724487040908,-504.06,0.00013698,2]
[335776045,1724487040918,-909.32,0.00013698,2]
[335776047,1724487040928,-822.14,0.00013698,2]
[335776049,1724487040937,-629.52,0.00013698,2]
[335776051,1724487040947,-500.0,0.00013698,2]
[335776053,1724487040957,-500.0,0.00013698,2]
[335776055,1724487040966,-812.69,0.00013698,2]
[335776057,1724487040976,-705.74,0.00013698,2]
[335776059,1724487040986,-671.16,0.00013698,2]
[335776061,1724487040996,-500.0,0.00013698,2]
[335776063,1724487041005,-500.0,0.00013698,2]
[335776065,1724487041014,-1173.77,0.00013698,2]
[335776067,1724487041024,-500.0,0.00013698,2]
[335776069,1724487041033,-500.0,0.00013698,2]
[335776071,1724487041043,-500.0,0.00013698,2]
[335776073,1724487041053,-500.0,0.00013698,2]
[335776075,1724487041063,-500.0,0.00013698,2]
[335776077,1724487041072,-500.0,0.00013698,2]
[335776079,1724487041082,-1507.2,0.00013698,2]
[335776082,1724487041097,-500.0,0.00013698,2]
[335776084,1724487041111,-500.0,0.00013698,2]
[335776086,1724487041121,-500.0,0.00013698,2]
[335776088,1724487041131,-500.0,0.00013698,2]
[335776090,1724487041140,-500.0,0.00013698,2]
[335776092,1724487041150,-500.0,0.00013698,2]
[335776094,1724487041160,-1375.39,0.00013698,2]
[335776096,1724487041170,-500.0,0.00013698,2]
[335776098,1724487041179,-500.0,0.00013698,2]
[335776100,1724487041190,-717.61,0.00013698,2]
[335776103,1724487041200,-500.0,0.00013698,2]
[335776105,1724487041210,-500.0,0.00013698,2]
[335776107,1724487041219,-500.0,0.00013698,2]
[335776109,1724487041228,-500.0,0.00013698,2]
[335776111,1724487041238,-571.72,0.00013698,2]
[335776113,1724487041247,-500.0,0.00013698,2]
[335776115,1724487041257,-500.0,0.00013698,2]
[335776117,1724487041268,-1422.51,0.00013698,2]
[335776119,1724487041278,-500.0,0.00013698,2]
[335776121,1724487041287,-1969.57,0.00013698,2]
[335776124,1724487041297,-500.0,0.00013698,2]
[335776126,1724487041307,-500.0,0.00013698,2]
[335776128,1724487041318,-500.0,0.00013698,2]
[335776130,1724487041329,-500.0,0.00013698,2]
[335776132,1724487041338,-500.0,0.00013698,2]
[335776134,1724487041351,-500.0,0.00013698,2]
[335776137,1724487041363,-500.0,0.00013698,2]
[335776139,1724487041372,-500.0,0.00013698,2]
[335776141,1724487041381,-500.0,0.00013698,2]
[335776143,1724487041391,-500.0,0.00013698,2]
[335776145,1724487041400,-555.96,0.00013698,2]
[335776147,1724487041410,-500.0,0.00013698,2]
[335776149,1724487041420,-500.0,0.00013698,2]
[335776151,1724487041429,-500.0,0.00013698,2]
[335776153,1724487041439,-500.0,0.00013698,2]
[335776155,1724487041449,-1081.36,0.00013698,2]
[335776157,1724487041458,-500.0,0.00013698,2]
[335776159,1724487041469,-1508.89,0.00013698,2]
[335776161,1724487041479,-500.0,0.00013698,2]
[335776163,1724487041489,-2439.02,0.00013698,2]
[335776165,1724487041498,-862.63,0.00013698,2]
[335776167,1724487041508,-500.0,0.00013698,2]
[335776170,1724487041518,-500.0,0.00013698,2]
[335776172,1724487041527,-331.08228858,0.00013698,2]
[335776174,1724487041537,-655.44,0.00013698,2]
[335776176,1724487041546,-674.87,0.00013698,2]
[335776178,1724487041556,-665.61,0.00013698,2]
[335776180,1724487041566,-1141.28,0.00013698,2]
[335776182,1724487041577,-500.0,0.00013698,2]
[335776184,1724487041587,-519.67,0.00013698,2]
[335776186,1724487041601,-500.0,0.00013698,2]
[335776188,1724487041611,-500.0,0.00013698,2]
[335776190,1724487041620,-500.0,0.00013698,2]
[335776193,1724487041630,-500.886722,0.00013698,2]
[335776195,1724487041644,-1081.07,0.00013698,2]
[335776197,1724487041653,-500.0,0.00013698,2]
[335776199,1724487041663,-558.95,0.00013698,2]